fUST/lending_fUST_20250729
["ID","MTS","AMOUNT","RATE_DAILY","PERIOD"]
[375706040,1753720251096,-151.0,0.00021245,2]
[375706042,1753720251105,-475.0,0.00021245,2]
[375706044,1753720251115,-151.0,0.000213,3]
[375706046,1753720251124,-151.0,0.000213,4]
[375706048,1753720251133,-151.0,0.000213,4]
[375706050,1753720251143,-1784.52617688,0.00021327,2]
[375706053,1753720251155,-1809.49645626,0.00021327,2]
[375706055,1753720251165,-360.0,0.00021363,2]
[375706057,1753720251176,-515.43,0.00021369,2]
[375706059,1753720251185,-2856.47,0.00021369,2]
[375706061,1753720251194,-460.0,0.00021369,2]
[375706063,1753720251204,-460.0,0.00021369,2]
[375706065,1753720251213,-1737.08,0.00021369,2]
[375706067,1753720251222,-588.65,0.00021369,2]
[375706069,1753720251231,-460.0,0.00021369,2]
[375706071,1753720251242,-460.0,0.00021369,2]
[375706073,1753720251251,-1396.84,0.00021369,2]
[375706075,1753720251260,-576.43,0.00021369,2]
[375706077,1753720251269,-151.0,0.00021369,2]
[375706079,1753720251278,-1778.62,0.00021369,2]
[375706081,1753720251288,-151.0,0.00021369,2]
[375706082,1753720251298,-151.0,0.00021369,2]
[375706084,1753720251308,-151.0,0.00021369,2]
[375706086,1753720251319,-151.0,0.00021369,2]
[375706088,1753720251328,-151.0,0.00021369,2]
[375706090,1753720251337,-151.0,0.00021369,2]
[375706092,1753720251347,-151.0,0.00021369,2]
[375706094,1753720251356,-460.0,0.00021369,2]
[375706096,1753720251364,-151.0,0.00021369,2]
[375706098,1753720251373,-170.182503,0.00021369,2]
[375706100,1753720251383,-170.182503,0.00021369,2]
[375706102,1753720251392,-460.0,0.00021369,2]
[375706104,1753720251401,-151.0,0.00021369,2]
[375706106,1753720251411,-603.3,0.00021369,2]
[375706108,1753720251423,-460.0,0.00021369,2]
[375706110,1753720251433,-546.89,0.00021369,2]
[375706112,1753720251443,-1887.46,0.00021369,2]
[375706114,1753720251453,-461.18,0.00021369,2]
[375706116,1753720251464,-151.0,0.00021369,2]
[375706118,1753720251474,-151.0,0.00021369,2]
[375706120,1753720251483,-579.13902897,0.00021369,2]
[375706122,1753720251492,-151.0,0.00021369,2]
[375706124,1753720251503,-460.0,0.00021369,2]
[375706126,1753720251516,-460.0,0.00021369,2]
[375706128,1753720251526,-151.0,0.00021369,2]
[375706130,1753720251536,-151.0,0.00021369,2]
[375706132,1753720251546,-279.959265,0.00021369,2]
[375706134,1753720251557,-502.48,0.00021369,2]
[375706136,1753720251573,-571.0,0.00021369,2]
[375706138,1753720251583,-797.71,0.00021369,2]
[375706140,1753720251593,-460.0,0.00021369,2]
[375706142,1753720251602,-151.0,0.00021369,2]
[375706144,1753720251611,-151.0,0.00021369,2]
[375706146,1753720251621,-514.02,0.00021369,2]
[375706148,1753720251630,-2232.54,0.00021369,2]
[375706150,1753720251640,-1445.65,0.00021369,2]
[375706152,1753720251649,-460.0,0.00021369,2]
[375706154,1753720251658,-34.00311393,0.00021369,2]
[375706157,1753720251672,-1060.97688607,0.00021369,2]
[375706159,1753720251681,-522.66,0.00021369,2]
[375706161,1753720251691,-2058.99,0.00021369,2]
[375706163,1753720251700,-169.352687,0.00021369,2]
[375706164,1753720251709,-460.0,0.00021369,2]
[375706166,1753720251720,-151.0,0.00021369,2]
[375706168,1753720251729,-169.352687,0.00021369,2]
[375706170,1753720251738,-478.25,0.00021369,2]
[375706172,1753720251748,-822.83,0.00021369,2]
[375706174,1753720251757,-2227.73,0.00021369,2]
[375706176,1753720251766,-581.1,0.00021369,2]
[375706178,1753720251775,-4872.27,0.00021369,2]
[375706180,1753720251784,-460.0,0.00021369,2]
[375706181,1753720251794,-460.0,0.00021369,2]
[375706183,1753720251803,-1131.82,0.00021369,2]
[375706185,1753720251813,-460.0,0.00021369,2]
[375706187,1753720251822,-460.0,0.00021369,2]
[375706189,1753720251831,-460.0,0.00021369,2]
[375706191,1753720251840,-460.0,0.00021369,2]
[375706193,1753720251850,-249.20016872,0.00021369,2]
[375706195,1753720251859,-1632.37,0.00021369,2]
[375706197,1753720251869,-1249.0,0.00021369,2]
[375706199,1753720251878,-460.0,0.00021369,2]
[375706201,1753720251888,-460.0,0.00021369,2]
[375706203,1753720251898,-522.03,0.00021369,2]
[375706205,1753720251907,-989.82,0.00021369,2]
[375706207,1753720251917,-656.68,0.00021369,2]
[375706209,1753720251928,-460.0,0.00021369,2]
[375706211,1753720251938,-730.2,0.00021369,2]
[375706213,1753720251947,-460.0,0.00021369,2]
[375706215,1753720251956,-540.07,0.00021369,2]
[375706217,1753720251965,-366.312756,0.00021369,2]
[375706219,1753720251975,-151.0,0.0002137,2]
[375706221,1753720251985,-151.0,0.0002137,2]
[375706223,1753720251994,-151.92336044,0.0002137,2]
[375706225,1753720252003,-151.0,0.0002137,2]
[375706227,1753720252012,-151.0,0.0002137,2]
[375706229,1753720252022,-151.0,0.0002137,2]
[375706231,1753720252031,-500.0,0.0002137,2]
[375706233,1753720252041,-151.0,0.0002137,2]
[375706235,1753720252050,-151.0,0.0002137,2]
[375706237,1753720252059,-151.0,0.0002137,2]
[375706239,1753720252069,-151.0,0.0002137,2]
[375706241,1753720252079,-788.0,0.0002137,2]
[375706243,1753720252088,-788.0,0.0002137,2]
[375706245,1753720252097,-152.98419651,0.0002137,2]
[375706247,1753720252107,-151.0,0.0002137,2]
[375706249,1753720252116,-151.28167398,0.0002137,2]
[375706251,1753720252126,-166.95873073,0.0002137,2]
[375706253,1753720252135,-151.0,0.0002137,2]
[375706255,1753720252145,-151.0,0.0002137,2]
[375706257,1753720252154,-151.0,0.0002137,2]
[375706259,1753720252163,-151.0,0.0002137,2]
[375706261,1753720252175,-151.0,0.0002137,2]
[375706263,1753720252185,-151.0,0.0002137,2]
[375706265,1753720252195,-151.0,0.0002137,2]
[375706267,1753720252205,-500.0,0.00021373,2]
[375706269,1753720252215,-500.0,0.00021373,2]
[375706271,1753720252224,-500.0,0.00021373,2]
[375706273,1753720252234,-501.72606197,0.00021373,2]
[375706275,1753720252243,-462.13637724,0.00021373,2]
[375706277,1753720252253,-500.0,0.00021373,2]
[375706279,1753720252263,-151.0,0.00021373,2]
[375706281,1753720252272,-1095.903044,0.00021373,2]
[375706283,1753720252281,-475.0,0.00021382,2]
[375706285,1753720252291,-17214.91827226,0.000214,2]
[375706287,1753720252303,-34180.07689127,0.000214,2]
[375706290,1753720252314,-2726.61456993,0.000214,2]
[375706292,1753720252323,-1467.31273027,0.000214,2]
[375706293,1753720252331,-3627.59961807,0.000214,2]
[375706302,1753720252406,-6372.40038093,0.000214,2]
[375706304,1753720252416,-155.2057358,0.00021425,2]
[375706306,1753720252428,-500.0,0.00021473,2]
[375706308,1753720252438,-200.0,0.00021477,15]
[375706310,1753720252448,-200.0,0.00021477,15]
[375706312,1753720252458,-200.0,0.00021477,15]
[375706314,1753720252467,-200.0,0.00021477,15]
[375706316,1753720252476,-320.0,0.00021477,15]
[375706318,1753720252485,-151.0,0.00021487,2]
[375706320,1753720252494,-151.0,0.00021487,2]
[375706322,1753720252507,-151.0,0.00021487,2]
[375706324,1753720252517,-1000.0,0.00021499,5]
[375706326,1753720252527,-2556.23785244,0.000215,2]
[375706328,1753720252536,-75246.1446633,0.000215,2]
[375706334,1753720252579,-1745.36844542,0.000215,2]
[375706336,1753720252591,-11999.71866796,0.000215,2]
[375706347,1753720252691,-502.62849551,0.000215,2]
[375706349,1753720252702,-2099.8316818,0.000215,2]
[375706370,1753720252955,-366.312756,0.00021369,2]
[375706372,1753720252965,-1013.687244,0.000215,2]
[375709516,1753720560590,1322.131,0.00018454,2]
[375709519,1753720639858,161.584651,0.00013699,2]
[375709524,1753721003530,307.63398556,0.00026363,120]
[375709526,1753721136126,-1115.24123854,0.00018877,2]
[375709527,1753721233102,-198.52348142,0.00019068,2]
[375709528,1753721233627,-95.80109652,0.00019068,2]
[375709529,1753721247083,-482.7403077,0.00019068,2]
[375709530,1753721247103,-198.52348141,0.00019073,2]
[375709531,1753721247124,-161.0,0.00019077,2]
[375709532,1753721247144,-300.0,0.00019077,2]
[375709533,1753721247164,-1200.0,0.00019077,2]
[375709534,1753721247185,-300.0,0.00019077,2]
[375709535,1753721247207,-198.52348141,0.00019078,2]
[375709536,1753721247229,-123.6876679,0.00019078,2]
[375709570,1753721432166,-300.0,0.00019077,2]
[375709572,1753721432176,-300.0,0.00019077,2]
[375709574,1753721432186,-1200.0,0.00019077,2]
[375709576,1753721432196,-2725.6860486,0.00019078,2]
[375709580,1753721432247,-467.09929999,0.00019078,2]
[375709581,1753721432259,-3892.08945947,0.00019078,2]
[375709586,1753721432301,-27965.57408882,0.00019078,2]
[375709625,1753721438165,-1335.51470334,0.00019078,2]
[375709626,1753721438377,-20093.09802334,0.00019078,2]
[375709627,1753721438388,-308.48,0.00019168,3]
[375709628,1753721438398,-500.0,0.00019173,2]
[375709629,1753721438407,-177.40122043,0.00019177,2]
[375709630,1753721438416,-500.0,0.00019177,2]
[375709631,1753721438425,-492.40027839,0.00019177,2]
[375709632,1753721438433,-500.0,0.00019177,2]
[375709633,1753721438442,-500.0,0.00019177,2]
[375709634,1753721438451,-170.51180107,0.00019177,2]
[375709635,1753721438460,-500.0,0.00019177,2]
[375709637,1753721438469,-500.0,0.00019177,2]
[375709639,1753721438478,-402.71306188,0.00019177,2]
[375709640,1753721438487,-500.0,0.00019177,2]
[375709643,1753721438497,-324.40645541,0.00019177,2]
[375709645,1753721438506,-177.5802468,0.00019177,2]
[375709647,1753721438516,-460.0,0.00019178,2]
[375709649,1753721438526,-460.0,0.00019178,2]
[375709651,1753721438535,-460.0,0.00019178,2]
[375709653,1753721438544,-460.0,0.00019178,2]
[375709655,1753721438554,-460.0,0.00019178,2]
[375709657,1753721438564,-460.0,0.00019178,2]
[375709659,1753721438573,-460.0,0.00019178,2]
[375709661,1753721438582,-460.0,0.00019178,2]
[375709663,1753721438592,-460.0,0.00019178,2]
[375709665,1753721438601,-460.0,0.00019178,2]
[375709667,1753721438611,-460.0,0.00019178,2]
[375709669,1753721438620,-460.0,0.00019178,2]
[375709671,1753721438629,-460.0,0.00019178,2]
[375709673,1753721438643,-460.0,0.00019178,2]
[375709675,1753721438652,-460.0,0.00019178,2]
[375709677,1753721438662,-460.0,0.00019178,2]
[375709679,1753721438671,-463.53115544,0.00019178,2]
[375709681,1753721438681,-460.0,0.00019178,2]
[375709683,1753721438690,-151.80139244,0.00019178,2]
[375709685,1753721438699,-4675.94,0.00019178,2]
[375709687,1753721438708,-460.0,0.00019178,2]
[375709689,1753721438717,-460.0,0.00019178,2]
[375709691,1753721438727,-460.0,0.00019178,2]
[375709693,1753721438736,-460.0,0.00019178,2]
[375709695,1753721438746,-460.0,0.00019178,2]
[375709697,1753721438755,-460.0,0.00019178,2]
[375709699,1753721438764,-298.75012774,0.00019178,2]
[375709701,1753721438774,-460.0,0.00019178,2]
[375709702,1753721438783,-460.0,0.00019178,2]
[375709704,1753721438792,-460.0,0.00019178,2]
[375709706,1753721438802,-460.0,0.00019178,2]
[375709708,1753721438812,-861.78,0.00019178,2]
[375709710,1753721438821,-460.0,0.00019178,2]
[375709712,1753721438830,-460.0,0.00019178,2]
[375709714,1753721438840,-460.0,0.00019178,2]
[375709716,1753721438849,-460.0,0.00019178,2]
[375709718,1753721438858,-460.0,0.00019178,2]
[375709720,1753721438868,-460.0,0.00019178,2]
[375709722,1753721438879,-460.0,0.00019178,2]
[375709724,1753721438889,-460.0,0.00019178,2]
[375709726,1753721438898,-460.0,0.00019178,2]
[375709728,1753721438908,-460.0,0.00019178,2]
[375709730,1753721438917,-460.0,0.00019178,2]
[375709732,1753721438926,-626.47,0.00019178,2]
[375709734,1753721438936,-460.0,0.00019178,2]
[375709736,1753721438945,-460.0,0.00019178,2]
[375709738,1753721438955,-460.0,0.00019178,2]
[375709740,1753721438965,-622.55,0.00019178,2]
[375709742,1753721438974,-460.0,0.00019178,2]
[375709744,1753721438983,-460.0,0.00019178,2]
[375709746,1753721438992,-460.0,0.00019178,2]
[375709748,1753721439002,-460.0,0.00019178,2]
[375709750,1753721439011,-460.0,0.00019178,2]
[375709752,1753721439020,-460.0,0.00019178,2]
[375709753,1753721439029,-460.0,0.00019178,2]
[375709756,1753721439039,-460.0,0.00019178,2]
[375709758,1753721439049,-460.0,0.00019178,2]
[375709760,1753721439058,-460.0,0.00019178,2]
[375709761,1753721439067,-466.56380979,0.00019178,2]
[375709763,1753721439076,-1363.32,0.00019178,2]
[375709765,1753721439086,-460.0,0.00019178,2]
[375709767,1753721439095,-460.0,0.00019178,2]
[375709769,1753721439104,-460.0,0.00019178,2]
[375709772,1753721439114,-460.0,0.00019178,2]
[375709774,1753721439123,-460.0,0.00019178,2]
[375709776,1753721439133,-460.0,0.00019178,2]
[375709778,1753721439143,-608.90020793,0.00019178,2]
[375709780,1753721439153,-460.0,0.00019178,2]
[375709782,1753721439162,-460.0,0.00019178,2]
[375709784,1753721439172,-460.0,0.00019178,2]
[375709786,1753721439181,-460.0,0.00019178,2]
[375709787,1753721439191,-702.27,0.00019178,2]
[375709789,1753721439200,-460.0,0.00019178,2]
[375709791,1753721439210,-460.0,0.00019178,2]
[375709794,1753721439219,-460.0,0.00019178,2]
[375709795,1753721439229,-460.0,0.00019178,2]
[375709797,1753721439238,-460.0,0.00019178,2]
[375709799,1753721439248,-460.0,0.00019178,2]
[375709801,1753721439257,-460.0,0.00019178,2]
[375709803,1753721439266,-460.0,0.00019178,2]
[375709805,1753721439276,-460.0,0.00019178,2]
[375709807,1753721439285,-460.0,0.00019178,2]
[375709809,1753721439295,-460.0,0.00019178,2]
[375709811,1753721439304,-460.0,0.00019178,2]
[375709813,1753721439314,-460.0,0.00019178,2]
[375709815,1753721439324,-460.0,0.00019178,2]
[375709817,1753721439333,-460.0,0.00019178,2]
[375709819,1753721439342,-460.0,0.00019178,2]
[375709821,1753721439351,-460.0,0.00019178,2]
[375709823,1753721439360,-460.0,0.00019178,2]
[375709825,1753721439370,-460.0,0.00019178,2]
[375709827,1753721439379,-460.0,0.00019178,2]
[375709829,1753721439389,-489.99117391,0.00019178,2]
[375709831,1753721439399,-460.0,0.00019178,2]
[375709833,1753721439408,-460.0,0.00019178,2]
[375709835,1753721439418,-186.55467028,0.00019178,2]
[375709837,1753721439427,-460.0,0.00019178,2]
[375709839,1753721439436,-460.0,0.00019178,2]
[375709841,1753721439446,-460.0,0.00019178,2]
[375709843,1753721439455,-460.0,0.00019178,2]
[375709845,1753721439465,-460.0,0.00019178,2]
[375709847,1753721439475,-460.0,0.00019178,2]
[375709850,1753721439484,-460.0,0.00019178,2]
[375709852,1753721439494,-367.59117734,0.00019178,2]
[375709854,1753721439503,-253.87133744,0.00019178,2]
[375709856,1753721439513,-460.0,0.00019178,2]
[375709858,1753721439523,-460.0,0.00019178,2]
[375709860,1753721439532,-460.0,0.00019178,2]
[375709864,1753721439549,-460.0,0.00019178,2]
[375709867,1753721439562,-460.0,0.00019178,2]
[375709869,1753721439572,-460.0,0.00019178,2]
[375709871,1753721439582,-460.0,0.00019178,2]
[375709873,1753721439591,-460.0,0.00019178,2]
[375709875,1753721439600,-2155.68,0.00019178,2]
[375709877,1753721439610,-460.0,0.00019178,2]
[375709879,1753721439619,-743.23,0.00019178,2]
[375709881,1753721439629,-460.0,0.00019178,2]
[375709882,1753721439642,-460.0,0.00019178,2]
[375709884,1753721439652,-253.77085638,0.00019178,2]
[375709886,1753721439662,-460.0,0.00019178,2]
[375709889,1753721439672,-605.73,0.00019178,2]
[375709891,1753721439682,-353.56460109,0.00019178,2]
[375709893,1753721439692,-460.0,0.00019178,2]
[375709895,1753721439702,-460.0,0.00019178,2]
[375709897,1753721439711,-460.0,0.00019178,2]
[375709899,1753721439721,-525.4,0.00019178,2]
[375709901,1753721439731,-460.0,0.00019178,2]
[375709903,1753721439740,-500.0,0.00019178,2]
[375709905,1753721439749,-460.0,0.00019178,2]
[375709907,1753721439759,-460.0,0.00019178,2]
[375709909,1753721439768,-460.0,0.00019178,2]
[375709911,1753721439778,-460.0,0.00019178,2]
[375709913,1753721439787,-460.0,0.00019178,2]
[375709915,1753721439797,-460.0,0.00019178,2]
[375709917,1753721439806,-460.0,0.00019178,2]
[375709919,1753721439816,-460.0,0.00019178,2]
[375709921,1753721439827,-460.0,0.00019178,2]
[375709923,1753721439836,-460.0,0.00019178,2]
[375709925,1753721439845,-460.0,0.00019178,2]
[375709927,1753721439855,-460.0,0.00019178,2]
[375709929,1753721439864,-297.81334956,0.00019178,2]
[375709931,1753721439877,-460.0,0.00019178,2]
[375709933,1753721439889,-460.0,0.00019178,2]
[375709935,1753721439899,-460.0,0.00019178,2]
[375709937,1753721439908,-622.32,0.00019178,2]
[375709939,1753721439919,-460.0,0.00019178,2]
[375709941,1753721439928,-460.0,0.00019178,2]
[375709943,1753721439938,-460.0,0.00019178,2]
[375709945,1753721439947,-460.0,0.00019178,2]
[375709947,1753721439957,-460.0,0.00019178,2]
[375709949,1753721439966,-460.0,0.00019178,2]
[375709951,1753721439975,-849.57,0.00019178,2]
[375709953,1753721439986,-500.0,0.00019178,2]
[375709955,1753721439995,-460.0,0.00019178,2]
[375709957,1753721440005,-460.0,0.00019178,2]
[375709959,1753721440015,-460.0,0.00019178,2]
[375709961,1753721440024,-460.0,0.00019178,2]
[375709963,1753721440034,-460.0,0.00019178,2]
[375709965,1753721440045,-460.0,0.00019178,2]
[375709967,1753721440054,-460.0,0.00019178,2]
[375709969,1753721440063,-460.0,0.00019178,2]
[375709971,1753721440073,-460.0,0.00019178,2]
[375709973,1753721440082,-460.0,0.00019178,2]
[375709975,1753721440091,-460.0,0.00019178,2]
[375709977,1753721440101,-649.09,0.00019178,2]
[375709979,1753721440110,-624.98,0.00019178,2]
[375709981,1753721440119,-460.0,0.00019178,2]
[375709983,1753721440129,-460.0,0.00019178,2]
[375709985,1753721440140,-460.0,0.00019178,2]
[375709987,1753721440149,-460.0,0.00019178,2]
[375709989,1753721440159,-558.46897063,0.00019178,2]
[375709991,1753721440168,-463.3122733,0.00019178,2]
[375709993,1753721440178,-460.0,0.00019178,2]
[375709995,1753721440188,-460.0,0.00019178,2]
[375709997,1753721440197,-460.0,0.00019178,2]
[375709999,1753721440207,-460.0,0.00019178,2]
[375710001,1753721440218,-2187.3,0.00019178,2]
[375710003,1753721440227,-460.0,0.00019178,2]
[375710005,1753721440237,-706.71,0.00019178,2]
[375710007,1753721440246,-400.88779267,0.00019178,2]
[375710009,1753721440255,-460.0,0.00019178,2]
[375710011,1753721440265,-460.0,0.00019178,2]
[375710013,1753721440274,-460.0,0.00019178,2]
[375710015,1753721440284,-460.0,0.00019178,2]
[375710017,1753721440293,-460.0,0.00019178,2]
[375710019,1753721440303,-460.0,0.00019178,2]
[375710021,1753721440312,-460.0,0.00019178,2]
[375710023,1753721440322,-1711.04,0.00019178,2]
[375710025,1753721440331,-460.0,0.00019178,2]
[375710027,1753721440340,-460.0,0.00019178,2]
[375710029,1753721440350,-460.0,0.00019178,2]
[375710031,1753721440359,-460.0,0.00019178,2]
[375710033,1753721440368,-460.0,0.00019178,2]
[375710035,1753721440378,-2804.95,0.00019178,2]
[375710037,1753721440390,-460.0,0.00019178,2]
[375710039,1753721440399,-460.0,0.00019178,2]
[375710041,1753721440409,-460.0,0.00019178,2]
[375710043,1753721440418,-460.0,0.00019178,2]
[375710045,1753721440428,-460.0,0.00019178,2]
[375710047,1753721440437,-460.0,0.00019178,2]
[375710049,1753721440446,-460.0,0.00019178,2]
[375710051,1753721440459,-460.0,0.00019178,2]
[375710054,1753721440468,-500.0,0.00019178,2]
[375710056,1753721440478,-460.0,0.00019178,2]
[375710058,1753721440489,-500.0,0.00019178,2]
[375710060,1753721440498,-460.0,0.00019178,2]
[375710062,1753721440507,-460.0,0.00019178,2]
[375710064,1753721440516,-500.0,0.00019178,2]
[375710066,1753721440526,-500.0,0.00019178,2]
[375710068,1753721440535,-500.0,0.00019178,2]
[375710070,1753721440544,-500.0,0.00019178,2]
[375710072,1753721440553,-460.0,0.00019178,2]
[375710074,1753721440563,-537.8,0.00019178,2]
[375710076,1753721440572,-751.0,0.00019178,2]
[375710078,1753721440581,-460.0,0.00019178,2]
[375710079,1753721440590,-460.0,0.00019178,2]
[375710081,1753721440599,-460.0,0.00019178,2]
[375710083,1753721440609,-460.0,0.00019178,2]
[375710085,1753721440618,-460.0,0.00019178,2]
[375710087,1753721440627,-460.0,0.00019178,2]
[375710089,1753721440637,-324.57638104,0.00019178,2]
[375710112,1753721440838,-460.0,0.00019178,2]
[375710114,1753721440847,-704.84,0.00019178,2]
[375710116,1753721440857,-463.91556943,0.00019178,2]
[375710117,1753721440867,-460.0,0.00019178,2]
[375710118,1753721440878,-460.0,0.00019178,2]
[375710119,1753721440887,-460.0,0.00019178,2]
[375710120,1753721440899,-475.79,0.00019178,2]
[375710121,1753721440908,-2666.61,0.00019178,2]
[375710122,1753721440918,-460.0,0.00019178,2]
[375710123,1753721440927,-460.0,0.00019178,2]
[375710124,1753721440936,-460.0,0.00019178,2]
[375710125,1753721440946,-460.0,0.00019178,2]
[375710126,1753721440955,-460.0,0.00019178,2]
[375710127,1753721440964,-460.0,0.00019178,2]
[375710128,1753721440973,-460.0,0.00019178,2]
[375710129,1753721440983,-460.0,0.00019178,2]
[375710131,1753721440992,-460.0,0.00019178,2]
[375710133,1753721441002,-460.0,0.00019178,2]
[375710136,1753721441011,-460.0,0.00019178,2]
[375710137,1753721441020,-460.0,0.00019178,2]
[375710139,1753721441029,-650.72,0.00019178,2]
[375710141,1753721441038,-460.0,0.00019178,2]
[375710143,1753721441047,-460.0,0.00019178,2]
[375710145,1753721441057,-460.0,0.00019178,2]
[375710147,1753721441065,-460.0,0.00019178,2]
[375710149,1753721441074,-460.0,0.00019178,2]
[375710151,1753721441083,-460.0,0.00019178,2]
[375710153,1753721441092,-460.0,0.00019178,2]
[375710155,1753721441101,-460.0,0.00019178,2]
[375710157,1753721441110,-460.0,0.00019178,2]
[375710159,1753721441119,-460.0,0.00019178,2]
[375710161,1753721441128,-1183.38,0.00019178,2]
[375710163,1753721441137,-460.0,0.00019178,2]
[375710165,1753721441148,-460.0,0.00019178,2]
[375710167,1753721441158,-460.0,0.00019178,2]
[375710169,1753721441167,-460.0,0.00019178,2]
[375710171,1753721441176,-460.0,0.00019178,2]
[375710173,1753721441185,-460.0,0.00019178,2]
[375710175,1753721441195,-460.0,0.00019178,2]
[375710177,1753721441204,-2681.56,0.00019178,2]
[375710179,1753721441214,-593.36,0.00019178,2]
[375710181,1753721441224,-460.0,0.00019178,2]
[375710183,1753721441233,-460.0,0.00019178,2]
[375710185,1753721441242,-460.0,0.00019178,2]
[375710187,1753721441251,-1502.79,0.00019178,2]
[375710189,1753721441260,-460.0,0.00019178,2]
[375710191,1753721441269,-500.0,0.00019178,2]
[375710193,1753721441279,-460.0,0.00019178,2]
[375710195,1753721441288,-500.0,0.00019178,2]
[375710197,1753721441297,-500.0,0.00019178,2]
[375710199,1753721441308,-500.0,0.00019178,2]
[375710201,1753721441317,-500.0,0.00019178,2]
[375710203,1753721441327,-500.0,0.00019178,2]
[375710205,1753721441336,-500.0,0.00019178,2]
[375710207,1753721441345,-500.0,0.00019178,2]
[375710209,1753721441355,-500.0,0.00019178,2]
[375710211,1753721441364,-478.9,0.00019178,2]
[375710213,1753721441373,-460.0,0.00019178,2]
[375710215,1753721441382,-460.0,0.00019178,2]
[375710217,1753721441394,-544.05316234,0.00019178,2]
[375710219,1753721441404,-460.0,0.00019178,2]
[375710221,1753721441413,-463.2498998,0.00019178,2]
[375710223,1753721441423,-460.0,0.00019178,2]
[375710225,1753721441432,-460.0,0.00019178,2]
[375710227,1753721441442,-460.0,0.00019178,2]
[375710229,1753721441451,-460.0,0.00019178,2]
[375710231,1753721441461,-252.24036346,0.00019178,2]
[375710233,1753721441471,-535.87,0.00019178,2]
[375710235,1753721441480,-460.0,0.00019178,2]
[375710237,1753721441491,-460.0,0.00019178,2]
[375710239,1753721441500,-1386.76,0.00019178,2]
[375710241,1753721441510,-460.0,0.00019178,2]
[375710243,1753721441519,-768.3,0.00019178,2]
[375710245,1753721441528,-460.0,0.00019178,2]
[375710247,1753721441537,-528.52,0.00019178,2]
[375710249,1753721441547,-460.0,0.00019178,2]
[375710251,1753721441556,-460.0,0.00019178,2]
[375710253,1753721441565,-2222.21,0.00019178,2]
[375710255,1753721441574,-460.0,0.00019178,2]
[375710257,1753721441583,-460.0,0.00019178,2]
[375710259,1753721441593,-460.0,0.00019178,2]
[375710261,1753721441602,-460.0,0.00019178,2]
[375710263,1753721441611,-523.99,0.00019178,2]
[375710265,1753721441621,-460.0,0.00019178,2]
[375710267,1753721441630,-460.0,0.00019178,2]
[375710269,1753721441639,-461.49402808,0.00019178,2]
[375710271,1753721441651,-460.0,0.00019178,2]
[375710273,1753721441660,-460.0,0.00019178,2]
[375710275,1753721441669,-460.0,0.00019178,2]
[375710277,1753721441678,-532.78,0.00019178,2]
[375710279,1753721441688,-460.0,0.00019178,2]
[375710281,1753721441697,-461.53405709,0.00019178,2]
[375710283,1753721441707,-460.0,0.00019178,2]
[375710285,1753721441717,-460.0,0.00019178,2]